Cogmind - Beta 13 @@@ ROGUE MODE // 2024.04.02 @ 18:10:42 Player: Mr.Morel Result: Self-destructed Performance ------------- Evolutions (2) 1000 Regions Visited (3) 600 Robots Destroyed (39) 195 Value Destroyed (1081) 1081 Prototype IDs (1) 20 Alien Tech Used (0) 0 Bonus (0) 0 TOTAL SCORE: 2896 Bonus ------- None Cogmind --------- Core Integrity 462/550 Matter 74/300 Energy 81/100 System Corruption 0% Temperature Cool (0) Movement Walking (120) Location -8/Materials Parts ------- > --- POWER (1) -------- (None) > --- PROPULSION (4) --- Carbon-fiber Leg Carbon-fiber Leg Carbon-fiber Leg Carbon-fiber Leg > --- UTILITY (3) ------ Small Storage Unit Hacking Suite > --- WEAPON (3) ------- Heavy Missile Launcher > --- INVENTORY (8) ---- Carbon-fiber Leg Carbon-fiber Leg Advanced Beam Cannon Advanced Beam Cannon Great Maul Peak State ------------ > --- POWER ------------ Improved Ion Engine > --- PROPULSION ------- Carbon-fiber Leg Carbon-fiber Leg Carbon-fiber Leg Carbon-fiber Leg > --- UTILITY ---------- Small Storage Unit Shield Generator Hacking Suite > --- WEAPON ----------- Advanced Beam Cannon Assault Rifle Heavy Missile Launcher > --- INVENTORY -------- Carbon-fiber Leg Carbon-fiber Leg Advanced Beam Cannon Heavy Missile Launcher Great Maul [Rating: 29] Favorites ----------- Power Ion Engine Engine Ion Engine Propulsion Aluminum Leg Treads Light Treads Leg Aluminum Leg Wheel Armored Wheel Utility Small Storage Unit Device Sensor Array Storage Small Storage Unit Hackware Hacking Suite Weapon Advanced Beam Cannon Energy Gun EM Pulse Gun Energy Cannon Advanced Beam Cannon Ballistic Gun Light Assault Rifle Launcher Grenade Launcher Build | -11 -10 -9 -8 ------- Run | Yrd Mat Mat Mat Slots Evolved 4 | . . 2 2 Power . | . . . . Propulsion 2 | . . 1 1 Utility 1 | . . 1 . Weapon 1 | . . . 1 Parts Attached 53 | 6 9 30 8 Power 6 | 1 1 4 . Engine 6 | 1 1 4 . Core . | . . . . Reactor . | . . . . Propulsion 18 | 2 2 9 5 Treads 2 | . . 2 . Leg 13 | 2 2 4 5 Wheel 3 | . . 3 . Hover . | . . . . Flight . | . . . . Utility 6 | 1 3 2 . Device 2 | . . 2 . Storage 3 | 1 2 . . Processor . | . . . . Hackware 1 | . 1 . . Protection . | . . . . Artifact . | . . . . Weapon 23 | 2 3 15 3 Energy Gun 3 | 1 1 1 . Energy Cannon 5 | . 1 4 . Ballistic Gun 8 | 1 1 5 1 Ballistic Cannon . | . . . . Launcher 7 | . . 5 2 Special Weapon . | . . . . Impact Weapon . | . . . . Slashing Weapon . | . . . . Piercing Weapon . | . . . . Special Melee Weapon . | . . . . Unidentified Prototypes 1 | . 1 . . Parts Lost 12 | . 3 4 5 Power 3 | . 1 1 1 Propulsion 5 | . 2 3 . Utility 1 | . . . 1 Weapon 3 | . . . 3 Highest Loss Streak 4 | . 3 3 4 To Critical Strikes . | . . . . Average Slot Usage (%) 94 | . 94 95 90 Engine 11 | . 13 10 8 Treads 1 | . . 4 . Leg 22 | . 27 13 34 Wheel 4 | . . 10 . Device 5 | . . 11 7 Storage 12 | . 14 11 9 Hackware 10 | . 9 11 9 Energy Gun 4 | . 5 2 3 Energy Cannon 9 | . 8 10 8 Ballistic Gun 10 | . 14 7 7 Naked Turns . | . . . . Heaviest Build 26 | 13 19 21 26 Greatest Support 60 | 20 20 40 60 Greatest Overweight (x) 5 | . 1 5 1 Average Overweight (x) . | . . . . Largest Inventory Capacity 10 | 8 10 8 8 Average Capacity 8 | 6 8 8 8 Most Carried 8 | 5 8 8 7 Average Carried 5 | 1 5 5 5 Final Capacity 8 | 8 8 8 8 Final Carried 6 | 2 6 6 5 Class Distribution -------------------- 77% | Mutant 18% | Scavenger-Mutant 4% | Tank Dominant Class ---------------- Mutant | -10/Materials Mutant | -9/Materials Tank | -8/Materials Resources | -11 -10 -9 -8 ----------- Run | Yrd Mat Mat Mat Matter Collected 803 | 204 176 423 . Remotely . | . . . . Salvage Created 1069 | . 313 679 77 Parts 77 | . 20 54 3 Haulers Intercepted . | . . . . Recyclers Shooed 2 | . . 2 . Parts Field Recycled . | . . . . Retrieved Matter . | . . . . Parts Self-Destructed . | . . . . Prevented . | . . . . Kills | -11 -10 -9 -8 ------- Run | Yrd Mat Mat Mat Combat Hostiles Destroyed 25 | . 8 14 3 Guns 9 | . 7 2 . Cannons 9 | . 1 7 1 AOE 7 | . . 5 2 Classes Destroyed 9 | . 4 5 . Worker 3 | . . 3 . Builder 3 | . . 3 . Mechanic 1 | . . 1 . Operator 1 | . 1 . . Watcher 6 | . 2 4 . Swarmer 3 | . 3 . . Grunt 16 | . 5 8 3 Brawler 2 | . . 2 . Sentry 4 | . . 4 . Best Kill Streak 6 | . 4 6 3 Combat Bots Only 3 | . 2 3 3 Max Kills in Single Turn 3 | . 1 3 1 Gunslinging . | . . . . Exploded 1 | . . 1 1 Melee . | . . . . Uniques/NPCs Destroyed . | . . . . Combat | -11 -10 -9 -8 -------- Run | Yrd Mat Mat Mat Hostile Shots Fired 200 | . 72 69 59 Missed 62 | . 18 22 22 Damage Taken 2177 | . 597 792 788 Core 329 | . 81 160 88 Absorbed by Shields 128 | . . 16 112 Core Remaining (%) 75 | 100 67 60 . Volleys Fired 97 | . 44 40 13 Largest 3 | . 2 2 3 Hottest 133 | . 88 113 133 Shots Fired 188 | . 88 72 28 Gun 111 | . 68 32 11 Cannon 60 | . 20 29 11 Launcher 17 | . . 11 6 Special . | . . . . Kinetic 81 | . 44 28 9 Thermal 60 | . 20 29 11 Explosive 17 | . . 11 6 Electromagnetic 30 | . 24 4 2 Robot Hit Streak 11 | . 5 11 4 Robot Miss Streak 5 | . 5 2 4 Penetration Max . | . . . . Secondary Targets . | . . . . Shots Hit Robots 102 | . 40 48 14 Core Hits 71 | . 20 41 10 Critical Kills . | . . . . Critical Parts Destroyed 1 | . 1 . . Critical Strikes 1 | . 1 . . Destroy 1 | . 1 . . Melee Attacks . | . . . . Impact . | . . . . Slashing . | . . . . Piercing . | . . . . Sneak Attacks . | . . . . Combat Hostiles . | . . . . Follow-up Attacks . | . . . . Damage Inflicted 2812 | . 594 1507 711 Guns 734 | . 330 319 85 Cannons 782 | . 184 474 124 Explosions 1289 | . 73 714 502 Melee . | . . . . Ramming 7 | . 7 . . Kinetic 548 | . 225 272 51 Thermal 855 | . 257 474 124 Explosive 1216 | . . 714 502 Electromagnetic 186 | . 105 47 34 Impact . | . . . . Slashing . | . . . . Piercing . | . . . . Highest Corruption 1 | . . 1 . Average Corruption 1 | . . 1 . Corruption Purged . | . . . . Corruption Blocked . | . . . . Overload Shots . | . . . . Overflow Damage 107 | . 1 9 97 Projectiles 9 | . . 9 . Explosions 98 | . 1 . 97 Melee . | . . . . Knockbacks . | . . . . Impact . | . . . . Kinetic . | . . . . Secondary . | . . . . Self-Inflicted Damage 254 | . . 10 244 Shots 5 | . . 1 4 Rammed . | . . . . Targets Rammed 2 | . 2 . . Kicked 2 | . 2 . . Crushed . | . . . . Highest Temperature 384 | . 384 183 178 Average Temperature 74 | . 85 65 67 Received Heat Transfer 770 | . 276 237 257 Siege Activations . | . . . . Robots Corrupted . | . . . . Combat Hostiles . | . . . . Parts Fried 2 | . 2 . . Impact Corruptions . | . . . . Robots Melted . | . . . . Combat Hostiles . | . . . . Parts Melted 2 | . . . 2 Heat Transferred 1506 | . 433 851 222 Parts Sabotaged . | . . . . Parts Stolen . | . . . . Parts Stripped . | . . . . Power Chain Reactions 1 | . 1 . . Alert | -11 -10 -9 -8 ------- Run | Yrd Mat Mat Mat Peak Influence 345 | . 189 345 182 Initial 141 | . . . 141 Average 102 | . 65 162 116 Maximum Alert Level 1 | . . 1 . Low Security (%) 87 | 100 100 68 100 Level 1 12 | . . 31 . Level 2 . | . . . . Level 3 . | . . . . Level 4 . | . . . . Level 5 . | . . . . High Security . | . . . . Max Security . | . . . . Squads Dispatched 4 | . 1 1 2 Investigation 1 | . . . 1 Extermination . | . . . . Reinforcement 3 | . 1 1 1 Assault . | . . . . Garrison . | . . . . Intercept . | . . . . Searches Triggered . | . . . . Construction Impeded . | . . . . Haulers Reinforced . | . . . . Active Scanning Responses . | . . . . Cargo Convoy Interrupts . | . . . . Stealth | -11 -10 -9 -8 --------- Run | Yrd Mat Mat Mat Distress Signals 8 | . 2 5 1 Communications Jammed . | . . . . Distress Signals . | . . . . Times Spotted 51 | . 19 24 8 Peak Tracking Total 6 | . 3 4 6 Tactical Retreats 2 | . 2 . . Traps | -11 -10 -9 -8 ------- Run | Yrd Mat Mat Mat Traps Triggered 1 | . . 1 . Indirectly . | . . . . Trap Hack Attempts . | . . . . Triggered . | . . . . Disarmed . | . . . . Reprogrammed . | . . . . Reused . | . . . . Traps Extracted . | . . . . Installed . | . . . . Triggered . | . . . . Machines | -11 -10 -9 -8 ---------- Run | Yrd Mat Mat Mat Machines Disabled 6 | . . 2 4 Max in Single Turn 2 | . . 1 2 Machines Repaired . | . . . . Machines Dismantled . | . . . . Machines Sabotaged . | . . . . Overloaded Fab Kills . | . . . . Hacking | -11 -10 -9 -8 --------- Run | Yrd Mat Mat Mat Machines Accessed 5 | . 4 . 1 Terminals 4 | . 3 . 1 Fabricators . | . . . . Repair Stations . | . . . . Recycling Units 1 | . 1 . . Scanalyzers . | . . . . Garrison Access . | . . . . Total Hacks 22 | . 16 . 6 Successful 5 | . 3 . 2 Failed 16 | . 12 . 4 Catastrophic 1 | . 1 . . Database Lockouts 1 | . 1 . . Manual . | . . . . Terminals 19 | . 13 . 6 Fabricators . | . . . . Repair Stations . | . . . . Recycling Units 3 | . 3 . . Scanalyzers . | . . . . Garrison Access . | . . . . Terminal Hacks 5 | . 3 . 2 Record 2 | . 2 . . Branch Access Points 1 | . 1 . . Unreport Threat 1 | . . . 1 Recall Reinforcements 1 | . . . 1 Fabricator Hacks . | . . . . Repair Station Hacks . | . . . . Recycling Unit Hacks . | . . . . Scanalyzer . | . . . . Garrison Access Hacks . | . . . . Unauthorized Hacks . | . . . . Terminals . | . . . . Fabricators . | . . . . Repair Stations . | . . . . Recycling Units . | . . . . Scanalyzers . | . . . . Garrison Access . | . . . . Data Cores Recovered . | . . . . Used . | . . . . Hacking Detections 5 | . 4 . 1 Full Trace Events 5 | . 4 . 1 Feedback Events . | . . . . Feedback Blocked . | . . . . Robot Schematics Acquired . | . . . . Robots Built . | . . . . Authchips . | . . . . Time . | . . . . Total Robot Build Rating . | . . . . Part Schematics Acquired . | . . . . Parts Built . | . . . . Authchips . | . . . . Time . | . . . . Total Part Build Rating . | . . . . Parts Repaired . | . . . . Time . | . . . . Parts Recycled . | . . . . Recycled Matter . | . . . . Retrieved Matter . | . . . . Retrieved Components . | . . . . Parts Scanalyzed . | . . . . Part Schematics Acquired . | . . . . Parts Damaged . | . . . . Bothacking | -11 -10 -9 -8 ------------ Run | Yrd Mat Mat Mat Used RIF Installer . | . . . . Robots Hacked . | . . . . Non-combat . | . . . . Combat . | . . . . Robot Hacks Applied . | . . . . Relay Couplers Released . | . . . . Fabnet Peak Effective % . | . . . . Robots Rewired . | . . . . Allies Hacked . | . . . . Hacks Repelled . | . . . . Allies | -11 -10 -9 -8 -------- Run | Yrd Mat Mat Mat Total Allies . | . . . . Largest Group . | . . . . Highest-Rated Group . | . . . . Highest-Rated Ally . | . . . . Total Orders . | . . . . Ally Attacks . | . . . . Total Damage . | . . . . Kills . | . . . . Allies Corrupted . | . . . . Allies Melted . | . . . . Intel | -11 -10 -9 -8 ------- Run | Yrd Mat Mat Mat Robot Analysis Total . | . . . . Derelict Logs Recovered . | . . . . Drone Launches . | . . . . Drone Recoveries . | . . . . Exploration | -11 -10 -9 -8 ------------- Run | Yrd Mat Mat Mat Turns Passed 2028 | 118 973 771 166 Spaces Moved 1372 | 91 683 514 84 Core 10 | 7 . 3 . Treads 91 | . . 91 . Legs 1051 | 84 683 200 84 Wheels 220 | . . 220 . Hover . | . . . . Flight . | . . . . Fastest Speed 50 | 50 120 90 120 Average Speed 118 | 114 120 115 122 Slowest Speed 300 | 120 190 300 190 Overloaded Moves . | . . . . Propulsion Burnouts . | . . . . Robots Hopped . | . . . . Cave-ins Triggered . | . . . . Exploration Rate (%) 26 | 5 59 27 13 Regions Visited 3 Branch Regions . Pre-discovered Areas . | . . . . Known Exits Taken . | . . . . Unknown Exits Taken 3 | 1 1 1 . Scrap Searched . | . . . . Spaces Dug . | . . . . Terrain Destroyed 122 | . 3 58 61 Melee . | . . . . Projectile 1 | . . 1 . AOE 121 | . 3 57 61 Terrain Rammed . | . . . . Walls Destroyed . | . . . . Machines Disabled . | . . . . Actions | -11 -10 -9 -8 --------- Run | Yrd Mat Mat Mat Total 1601 | 104 757 616 124 Wait 3 | . . 1 2 Move 1369 | 90 682 513 84 Hop . | . . . . Pick Up 50 | 8 14 19 9 Fast Attach . | . . . . Attach 28 | 6 7 7 8 Detach 1 | . . . 1 Swap 25 | . 2 23 . Drop 26 | . 6 13 7 Fire 97 | . 44 40 13 Melee . | . . . . Ram . | . . . . Kick 2 | . 2 . . Crush . | . . . . Escape Stasis . | . . . . Rewire . | . . . . Trap . | . . . . Miscellaneous . | . . . . Route ------- -11/Scrapyard -10/Materials (discovered 3 exits: [*Mat x2] / Min) -9/Materials -8/Materials History --------- Turn | Location | Event 7 | -11/Scrapyard | Discovered new exit (range 16) 119 | -11/Scrapyard | Entered Materials 310 | -10/Materials | Build established: Mutant 445 | -10/Materials | Identified exit to Mines 445 | -10/Materials | Central database locked down 467 | -10/Materials | Discovered new exit (range 16) 733 | -10/Materials | Lost 3 parts (1p2n) 1073 | -10/Materials | Discovered new exit (range 5) 1092 | -10/Materials | Entered another Materials area 1092 | -9/Materials | Evolved 2 slots: Propulsion x1, Utility x1 1358 | -9/Materials | Lost 3 parts (3n) 1760 | -9/Materials | Discovered new exit (range 15) 1863 | -9/Materials | Entered another Materials area 1863 | -8/Materials | Evolved 2 slots: Propulsion x1, Weapon x1 2029 | -8/Materials | Self-destructed Last Messages --------------- U-05 Engineer builds a Wall. Critical hit (Burn: +27). U-05 Engineer lays Concrete. U-05 Engineer builds a Wall. Electrolysis Chamber disabled. Shield Generator destroyed. The unstable cave ceiling collapses. U-05 Engineer lays Concrete. Critical hit (Burn: +37). U-05 Engineer lays Concrete. U-05 Engineer builds a Wall. Imp. Ion Engine destroyed. Destroyed Imp. Ion Engine. Purification Channel disabled. Destroyed Lgt. Nuclear Core. G-47 Trooper destroyed. Hvy. Missile Launcher destroyed. U-05 Engineer lays Concrete. The unstable cave ceiling collapses. U-05 Engineer lays Concrete. Map ----- +----------------------------------------------------+ | | | | | | | | | | | | | | | | | | | | | | | ?????????????????????????????????????????????????? | | ????????????????????????????????##???????????????? | | ??????????????????????###?????? #???????????????? | | ?????????????????###### ###?" #???????????????? | | ?????????????? ??# !#""" #???????????????? | | ????????????? *?# """ #"" =#??##???????????? | | ????????????? # "" #""" r#? ???????????? | | ??????????????" " # " # ?????????????? | | ??????????????"" Y + ??????????????? | | ??????????????"" #???????????????? | | ?????????????""" #???????????????? | | ??????????? """ " #???????????????? | | ???????????? ! #???????????????? | | ?????????####+### l ######## ????????? | | ?????????# @ a ????????? | | ?????????# === #####??????????????? | | ?????????# == g ###??????????????????? | | ?????????##### == # ########??????????????? | | ?????????#]] = #??????????????? | | ?????????#]] T #??????????????? | | ?????????#!! #??????????????? | | ?????????#!! # #??????????????? | | ?????????#!! + u #??????????????? | | ?????????#!! # #??????????????? | | ?????????##### # #??????????????? | | ?????????????# " #??????????????? | | ?????????????# """"" "##########??????????????? | | ?????????????# """"" " #####?????????????????? | | ?????????????# """"" #### ????????????????? | | ?????????????# """"" #??# ???????????????? | | ?????????????# """"" #??# ??????????????? | | ?????????????# "?""" #??# #####?????????????? | | ?????????????# "??"" #??# #?????????????????? | | ?????????????# ?? #??# #?????????????????? | | ?????????????# ?? #??# #?????????????????? | | ????????????? ??? #??# #?????????????????? | | ?????????????? ???? ?? #?????????????????? | | ??????????????????? ??? ??????????????????? | | ???????????????????? ????????????????????????? | +----------------------------------------------------+ Best States ------------- Heat Dissipation 31 Energy Generation 12 Energy Capacity 265 Matter Stores 300 Matter Capacity 300 Sight Range 16 Robot Scan Range 14 Terrain Scan Density 10 Evasion (%) 55 Recoil Reduction 2 Offensive Hacking 10 Item Schematics ----------------- None Robot Schematics ------------------ None Fabricated ------------ Nothing Alien Tech Used ----------------- None Achievements -------------- Everything Is Under Control GoHome() Challenges ------------ None Game ------ Seed AluminumCompactShredder Manual? 0 Play Time 00:26:10 Cumulative 4.4 hours Start 2024.04.02 @ 17:43:51 End 2024.04.02 @ 18:10:42 Sessions 1 Manual Loads 0 Difficulty Rogue Special Mode None Game No. 6 Rogue 6 Adventurer 0 Explorer 0 Win Type - Total 0 Types 0/0/0/0/0/0/0/0/0 Lore% 1 Gallery% 10 Achievement% 8 Wizard Run 0 Options --------- Layout 1 ASCII 0 Keyboard 0 Movement Arrows Keybinds 0 Fullscreen 1 Font 24/Smallcaps Map View 50x35 Zoom Use 0% Tactical HUD 0 Map Filters NONE Filters NONE Steam 1 RUN: b9d0a661-a205-4c00-b4db-a8a2fe614e28